fUSD/lending_fUSD_20240505
["ID","MTS","AMOUNT","RATE_DAILY","PERIOD"]
[326459403,1714939847464,-151.0,0.00028,7]
[326459404,1714939847474,-450.0,0.00028,7]
[326459405,1714939847484,-450.0,0.00028,7]
[326459406,1714939847494,-151.0,0.00028,7]
[326459407,1714939847506,-151.0,0.00028,7]
[326459408,1714939847516,-151.0,0.00028,7]
[326459409,1714939847525,-151.0,0.00028,7]
[326459410,1714939847536,-151.0,0.00028,7]
[326459411,1714939847546,-151.0,0.00028,7]
[326459412,1714939847556,-151.0,0.00028,7]
[326459413,1714939847565,-151.0,0.00028,7]
[326459414,1714939847575,-151.0,0.00028,7]
[326459415,1714939847586,-151.0,0.00028,7]
[326459416,1714939847595,-264.29468,0.00028,7]
[326459417,1714939847606,-151.0,0.00028,7]
[326459418,1714939847616,-264.29468,0.00028,7]
[326459419,1714939847626,-151.0,0.00028,7]
[326459420,1714939847636,-209.071652,0.00028,7]
[326459421,1714939847646,-266.36243,0.00028,7]
[326459422,1714939847656,-209.071652,0.00028,7]
[326459423,1714939847665,-151.0,0.00028,7]
[326459424,1714939847675,-151.0,0.00028,7]
[326459425,1714939847685,-151.0,0.00028,7]
[326459426,1714939847695,-151.0,0.00028,7]
[326459427,1714939847705,-151.0,0.00028,7]
[326459428,1714939847715,-151.0,0.00028,7]
[326459429,1714939847724,-151.0,0.00028,7]
[326459430,1714939847734,-151.0,0.00028,7]
[326459431,1714939847744,-844.718222,0.00028,7]
[326459432,1714939847755,-844.718222,0.00028,7]
[326459433,1714939847764,-151.0,0.00028,7]
[326459434,1714939847774,-1287.677464,0.00028,7]
[326459435,1714939847784,-1287.677464,0.00028,7]
[326459436,1714939847794,-202.028961,0.00028,7]
[326459437,1714939847803,-202.028961,0.00028,7]
[326459438,1714939847813,-177.806004,0.00028,7]
[326459439,1714939847823,-151.0,0.00028,7]
[326459440,1714939847833,-177.806004,0.00028,7]
[326459441,1714939847843,-151.0,0.00028,7]
[326459442,1714939847852,-173.87888,0.00028,7]
[326459443,1714939847862,-151.0,0.00028,7]
[326459444,1714939847871,-173.87888,0.00028,7]
[326459445,1714939847881,-300.0,0.00028002,2]
[326459446,1714939847891,-150.0,0.00028003,2]
[326459447,1714939847900,-8535.0520666,0.00028003,2]
[326459448,1714939847910,-16573.1721374,0.00028003,2]
[326459449,1714939847919,-300.0,0.00028018,2]
[326459450,1714939847929,-31352.0248978,0.00028022,2]
[326459451,1714939847939,-150.0,0.00028026,2]
[326459452,1714939847948,-150.0,0.00028047,2]
[326459453,1714939847958,-274.19260072,0.00028051,2]
[326459454,1714939847967,-150.0,0.00028053,2]
[326459455,1714939847977,-150.0,0.00028057,2]
[326459456,1714939847987,-300.0,0.00028064,2]
[326459457,1714939847996,-150.0,0.0002807,2]
[326459458,1714939848008,-150.0,0.0002807,2]
[326459459,1714939848018,-200.0,0.00028073,2]
[326459460,1714939848028,-1000.0,0.00028073,10]
[326459461,1714939848037,-500.0,0.00028073,2]
[326459462,1714939848047,-200.0,0.00028073,2]
[326459463,1714939848057,-150.0,0.00028084,2]
[326459464,1714939848066,-150.0,0.00028089,2]
[326459465,1714939848076,-300.0,0.00028103,2]
[326459466,1714939848085,-150.0,0.00028107,2]
[326459467,1714939848095,-150.0,0.00028108,2]
[326459468,1714939848105,-150.0,0.00028117,2]
[326459469,1714939848114,-150.0,0.00028122,2]
[326459470,1714939848124,-150.0,0.00028125,2]
[326459471,1714939848133,-150.0,0.00028132,2]
[326459472,1714939848142,-273.34198694,0.00028137,2]
[326459473,1714939848152,-150.0,0.00028142,2]
[326459474,1714939848161,-150.0,0.00028157,2]
[326459475,1714939848170,-237.77515042,0.0002816,2]
[326459476,1714939848180,-300.0,0.00028179,2]
[326459477,1714939848189,-150.0,0.00028196,2]
[326459478,1714939848201,-733.0,0.000282,5]
[326459479,1714939848212,-963.89,0.000282,2]
[326459480,1714939848221,-150.0,0.00028203,2]
[326459481,1714939848230,-150.0,0.00028204,2]
[326459482,1714939848239,-150.0,0.00028206,2]
[326459483,1714939848250,-300.0,0.00028209,2]
[326459484,1714939848259,-150.0,0.00028211,2]
[326459485,1714939848269,-150.0,0.00028218,2]
[326459486,1714939848280,-300.0,0.00028227,2]
[326459487,1714939848290,-150.0,0.00028233,2]
[326459488,1714939848300,-300.0,0.00028235,2]
[326459489,1714939848309,-150.0,0.00028237,2]
[326459490,1714939848319,-159.17705713,0.00028247,2]
[326459491,1714939848328,-150.0,0.00028248,2]
[326459492,1714939848337,-150.0,0.00028258,2]
[326459493,1714939848347,-150.0,0.00028263,2]
[326459494,1714939848356,-150.0,0.00028277,2]
[326459495,1714939848366,-150.0,0.00028281,2]
[326459496,1714939848375,-300.0,0.00028288,2]
[326459497,1714939848384,-1122.3,0.000283,2]
[326459498,1714939848393,-150.0,0.000283,2]
[326459499,1714939848403,-300.0,0.00028301,2]
[326459500,1714939848413,-150.0,0.00028318,2]
[326459501,1714939848422,-300.0,0.00028334,2]
[326459502,1714939848432,-150.0,0.00028339,2]
[326459503,1714939848442,-150.0,0.0002834,2]
[326459504,1714939848452,-150.0,0.00028358,2]
[326459505,1714939848461,-200.0,0.0002837,2]
[326459506,1714939848471,-1000.0,0.0002837,10]
[326459507,1714939848480,-500.0,0.0002837,2]
[326459508,1714939848490,-300.0,0.00028373,2]
[326459509,1714939848500,-300.0,0.00028375,2]
[326459510,1714939848512,-161.84679703,0.00028375,2]
[326459511,1714939848521,-150.0,0.00028384,2]
[326459512,1714939848530,-1136.0,0.0002839,15]
[326459513,1714939848539,-1178.0,0.0002839,15]
[326459514,1714939848548,-150.0,0.0002839,2]
[326459515,1714939848557,-1136.0,0.000284,15]
[326459516,1714939848566,-1178.0,0.000284,15]
[326459517,1714939848576,-1500.0,0.000284,2]
[326459518,1714939848585,-150.0,0.00028402,2]
[326459519,1714939848595,-150.0,0.00028406,2]
[326459520,1714939848604,-1136.0,0.0002841,15]
[326459521,1714939848614,-1178.0,0.0002841,15]
[326459522,1714939848624,-150.0,0.00028431,2]
[326459523,1714939848633,-285.50016337,0.00028433,2]
[326459524,1714939848643,-150.0,0.00028434,2]
[326459525,1714939848652,-150.0,0.00028438,2]
[326459526,1714939848662,-911.93,0.0002844,2]
[326459527,1714939848672,-414.53,0.0002844,2]
[326459528,1714939848681,-414.53,0.0002844,2]
[326459529,1714939848690,-911.93,0.0002844,2]
[326459530,1714939848699,-414.53,0.0002844,2]
[326459531,1714939848708,-911.93,0.0002844,2]
[326459532,1714939848717,-414.53,0.0002844,2]
[326459533,1714939848727,-414.53,0.0002844,2]
[326459534,1714939848737,-414.53,0.0002844,2]
[326459535,1714939848746,-911.93,0.0002844,2]
[326459536,1714939848851,-414.53,0.0002844,2]
[326459537,1714939848860,-414.53,0.0002844,2]
[326459538,1714939848870,-664.33,0.0002844,2]
[326459539,1714939848879,-414.53,0.0002844,2]
[326459540,1714939848888,-414.53,0.0002844,2]
[326459541,1714939848897,-414.53,0.0002844,2]
[326459542,1714939848907,-414.53,0.0002844,2]
[326459543,1714939848917,-414.53,0.0002844,2]
[326459544,1714939848926,-414.53,0.0002844,2]
[326459545,1714939848935,-414.53,0.0002844,2]
[326459546,1714939848945,-414.53,0.0002844,2]
[326459547,1714939848954,-414.53,0.0002844,2]
[326459548,1714939848963,-414.53,0.0002844,2]
[326459549,1714939848972,-414.53,0.0002844,2]
[326459550,1714939848981,-414.53,0.0002844,2]
[326459551,1714939848990,-414.53,0.0002844,2]
[326459552,1714939848999,-414.53,0.0002844,2]
[326459553,1714939849011,-325.85,0.0002844,2]
[326459554,1714939849021,-150.0,0.00028442,2]
[326459555,1714939849030,-150.0,0.00028449,2]
[326459556,1714939849039,-150.0,0.00028457,2]
[326459557,1714939849048,-150.0,0.00028462,2]
[326459558,1714939849057,-259.80906178,0.00028465,10]
[326459559,1714939849066,-216197.6194518,0.00028467,2]
[326459560,1714939849076,-150.0,0.0002847,2]
[326459561,1714939849085,-466.0,0.000285,2]
[326459562,1714939849094,-300.0,0.00028502,2]
[326459563,1714939849104,-300.0,0.0002851,2]
[326459564,1714939849113,-150.0,0.00028514,2]
[326459565,1714939849123,-150.0,0.00028533,2]
[326459566,1714939849132,-150.0,0.00028536,2]
[326459567,1714939849141,-150.0,0.00028551,2]
[326459568,1714939849150,-150.0,0.00028562,2]
[326459569,1714939849159,-150.0,0.00028566,2]
[326459570,1714939849168,-150.0,0.0002857,2]
[326459571,1714939849178,-577.81,0.000286,2]
[326459572,1714939849187,-167.62551784,0.0002861,3]
[326459573,1714939849200,-150.0,0.00028626,2]
[326459574,1714939849210,-212.0,0.0002865,2]
[326459575,1714939849220,-150.0,0.00028651,2]
[326459576,1714939849229,-150.0,0.00028652,2]
[326459577,1714939849239,-156.0,0.0002866,25]
[326459578,1714939849248,-150.0,0.0002866,2]
[326459579,1714939849258,-300.0,0.0002866,2]
[326459580,1714939849267,-200.0,0.00028667,2]
[326459581,1714939849278,-1000.0,0.00028667,10]
[326459582,1714939849288,-200.0,0.00028667,7]
[326459583,1714939849300,-500.0,0.00028667,2]
[326459584,1714939849309,-200.0,0.00028667,2]
[326459585,1714939849318,-237.77515042,0.00028672,2]
[326459586,1714939849330,-150.0,0.00028687,2]
[326459587,1714939849340,-300.0,0.0002869,2]
[326459588,1714939849349,-300.0,0.00028696,2]
[326459589,1714939849358,-150.0,0.00028721,2]
[326459590,1714939849368,-150.0,0.00028724,2]
[326459591,1714939849378,-150.0,0.00028732,2]
[326459592,1714939849388,-157.93592244,0.00028733,2]
[326459593,1714939849398,-150.0,0.00028736,2]
[326459594,1714939849408,-150.0,0.00028743,2]
[326459595,1714939849417,-150.0,0.00028746,2]
[326459596,1714939849427,-150.0,0.00028747,2]
[326459597,1714939849436,-150.0,0.00028755,2]
[326459598,1714939849445,-500.0,0.00028755,2]
[326459599,1714939849455,-500.0,0.00028755,2]
[326459600,1714939849464,-500.0,0.00028755,2]
[326459601,1714939849475,-500.0,0.00028755,2]
[326459602,1714939849485,-560.9012,0.00028755,2]
[326459603,1714939849494,-1000.0,0.00028755,2]
[326459604,1714939849504,-1000.0,0.00028755,2]
[326459605,1714939849513,-1000.0,0.00028755,2]
[326459606,1714939849522,-1000.0,0.00028755,2]
[326459607,1714939849531,-1000.0,0.00028755,2]
[326459608,1714939849541,-1000.0,0.00028755,2]
[326459609,1714939849555,-1000.0,0.00028755,2]
[326459610,1714939849564,-1000.0,0.00028755,2]
[326459611,1714939849573,-1000.0,0.00028755,2]
[326459612,1714939849582,-1000.0,0.00028755,2]
[326459613,1714939849591,-1000.0,0.00028755,2]
[326459614,1714939849599,-1000.0,0.00028755,2]
[326459615,1714939849608,-1000.0,0.00028755,2]
[326459616,1714939849617,-1000.0,0.00028755,2]
[326459617,1714939849626,-1000.0,0.00028755,2]
[326459618,1714939849635,-1000.0,0.00028755,2]
[326459619,1714939849644,-1000.0,0.00028755,2]
[326459620,1714939849653,-1000.0,0.00028755,2]
[326459621,1714939849662,-1000.0,0.00028755,2]
[326459622,1714939849671,-1000.0,0.00028755,2]
[326459623,1714939849680,-1000.0,0.00028755,2]
[326459624,1714939849689,-1000.0,0.00028755,2]
[326459625,1714939849698,-1000.0,0.00028755,2]
[326459626,1714939849707,-1000.0,0.00028755,2]
[326459627,1714939849716,-1000.0,0.00028755,2]
[326459628,1714939849725,-1000.0,0.00028755,2]
[326459629,1714939849734,-1000.0,0.00028755,2]
[326459630,1714939849743,-1000.0,0.00028755,2]
[326459631,1714939849752,-1000.0,0.00028755,2]
[326459632,1714939849762,-1000.0,0.00028755,2]
[326459633,1714939849771,-1000.0,0.00028755,2]
[326459634,1714939849780,-1000.0,0.00028755,2]
[326459635,1714939849789,-1000.0,0.00028755,2]
[326459636,1714939849798,-1000.0,0.00028755,2]
[326459637,1714939849807,-1000.0,0.00028755,2]
[326459638,1714939849816,-1000.0,0.00028755,2]
[326459639,1714939849825,-1000.0,0.00028755,2]
[326459640,1714939849834,-1000.0,0.00028755,2]
[326459641,1714939849843,-255.0723,0.00028755,2]
[326459643,1714939849852,-888.0,0.00028767,5]
[326459644,1714939849861,-1039.34,0.00028767,2]
[326459645,1714939849870,-1039.34,0.00028767,2]
[326459647,1714939849879,-1039.34,0.00028767,2]
[326459648,1714939849888,-1039.34,0.00028767,2]
[326459649,1714939849898,-1039.34,0.00028767,2]
[326459650,1714939849907,-1039.34,0.00028767,2]
[326459651,1714939849916,-1039.34,0.00028767,2]
[326459652,1714939849924,-1039.34,0.00028767,2]
[326459653,1714939849935,-1039.34,0.00028767,2]
[326459654,1714939849945,-1039.34,0.00028767,2]
[326459655,1714939849956,-150.0,0.00028774,2]
[326459656,1714939849965,-150.0,0.00028781,2]
[326459657,1714939849975,-150.0,0.00028797,2]
[326459658,1714939849984,-150.0,0.000288,6]
[326459659,1714939849993,-150.0,0.00028802,2]
[326459660,1714939850003,-150.0,0.00028803,2]
[326459661,1714939850012,-150.0,0.00028809,2]
[326459662,1714939850021,-300.0,0.00028813,2]
[326459663,1714939850030,-300.0,0.00028815,2]
[326459664,1714939850039,-150.0,0.0002882,2]
[326459665,1714939850047,-300.0,0.00028827,2]
[326459666,1714939850056,-155.95646156,0.00028836,2]
[326459667,1714939850065,-150.0,0.00028839,2]
[326459668,1714939850075,-150.0,0.00028844,2]
[326459669,1714939850084,-150.0,0.00028848,2]
[326459670,1714939850092,-150.0,0.00028851,2]
[326459671,1714939850101,-150.0,0.00028851,2]
[326459672,1714939850110,-150.0,0.00028851,2]
[326459673,1714939850119,-701.64,0.00028851,2]
[326459674,1714939850129,-163.09,0.00028851,2]
[326459675,1714939850138,-150.0,0.00028851,2]
[326459676,1714939850147,-163.09,0.00028851,2]
[326459677,1714939850155,-150.0,0.00028869,2]
[326459678,1714939850164,-150.0,0.00028897,2]
[326459679,1714939850173,-150.01,0.00028898,2]
[326459680,1714939850182,-5856.07938099,0.00028898,2]
[326459681,1714939850191,-150.0,0.00028898,2]
[326459682,1714939850202,-576388.94896771,0.000289,5]
[326459683,1714939850215,-496.0,0.000289,13]
[326459684,1714939850224,-342.0,0.000289,2]
[326459685,1714939850232,-151.0,0.000289,7]
[326459686,1714939850241,-246.114604,0.000289,7]
[326459687,1714939850253,-151.0,0.000289,7]
[326459688,1714939850262,-151.0,0.000289,7]
[326459689,1714939850271,-296.654712,0.000289,7]
[326459690,1714939850282,-151.0,0.000289,7]
[326459691,1714939850292,-151.0,0.000289,7]
[326459692,1714939850301,-187.665309,0.000289,7]
[326459693,1714939850311,-151.0,0.000289,7]
[326459694,1714939850320,-171.372256,0.000289,7]
[326459695,1714939850329,-171.372256,0.000289,7]
[326459696,1714939850338,-276.841532,0.000289,7]
[326459697,1714939850347,-1537.746255,0.000289,2]
[326459698,1714939850357,-151.0,0.000289,7]
[326459699,1714939850366,-151.0,0.000289,7]
[326459700,1714939850375,-151.0,0.000289,7]
[326459701,1714939850385,-151.0,0.000289,7]
[326459702,1714939850394,-151.0,0.000289,7]
[326459703,1714939850403,-151.0,0.000289,7]
[326459704,1714939850413,-151.0,0.000289,7]
[326459705,1714939850422,-285.04402,0.000289,7]
[326459706,1714939850431,-285.04402,0.000289,7]
[326459707,1714939850441,-151.0,0.000289,7]
[326459708,1714939850450,-450.0,0.000289,7]
[326459709,1714939850459,-450.0,0.000289,7]
[326459710,1714939850469,-151.0,0.000289,7]
[326459711,1714939850478,-151.0,0.000289,7]
[326459712,1714939850487,-150.0,0.000289,2]
[326459713,1714939850496,-268.097724,0.000289,7]
[326459714,1714939850506,-767.89281119,0.000289,2]
[326459715,1714939850515,-151.0,0.000289,7]
[326459716,1714939850524,-151.0,0.000289,7]
[326459717,1714939850534,-151.0,0.000289,7]
[326459718,1714939850543,-150.0,0.000289,2]
[326459719,1714939850552,-151.0,0.000289,7]
[326459720,1714939850561,-151.0,0.000289,7]
[326459721,1714939850570,-151.0,0.000289,7]
[326459722,1714939850580,-151.0,0.000289,7]
[326459723,1714939850589,-264.29468,0.000289,7]
[326459724,1714939850598,-151.0,0.000289,7]
[326459725,1714939850608,-264.29468,0.000289,7]
[326459726,1714939850617,-209.071652,0.000289,7]
[326459727,1714939850627,-209.071652,0.000289,7]
[326459728,1714939850636,-151.0,0.000289,7]
[326459729,1714939850646,-151.0,0.000289,7]
[326459730,1714939850656,-1500.0,0.000289,2]
[326459731,1714939850665,-300.702551,0.000289,7]
[326459732,1714939850674,-4821.93163521,0.000289,2]
[326459733,1714939850684,-151.0,0.000289,7]
[326459734,1714939850693,-270.077165,0.000289,7]
[326459735,1714939850703,-151.0,0.000289,7]
[326459736,1714939850712,-151.0,0.000289,7]
[326459737,1714939850721,-844.718222,0.000289,7]
[326459738,1714939850730,-844.718222,0.000289,7]
[326459739,1714939850739,-1287.677464,0.000289,7]
[326459740,1714939850750,-1287.677464,0.000289,7]
[326459741,1714939850761,-202.028961,0.000289,7]
[326459742,1714939850770,-202.028961,0.000289,7]
[326459743,1714939850778,-177.806004,0.000289,7]
[326459744,1714939850788,-151.0,0.000289,7]
[326459745,1714939850797,-177.806004,0.000289,7]
[326459746,1714939850806,-151.0,0.000289,7]
[326459747,1714939850815,-173.87888,0.000289,7]
[326459748,1714939850825,-173.87888,0.000289,7]
[326459749,1714939850836,-82656.14611837,0.00028998,2]
[326459750,1714939850846,-331277.53495255,0.00029,2]
[326459751,1714939850856,-12000.0,0.00029,2]
[326459752,1714939850865,-895.54784065,0.00029,2]
[326459753,1714939850876,-264392.70053507,0.00029,2]
[326459754,1714939850886,-563.61551475,0.00029,2]
[326459755,1714939850895,-217.1456,0.00029,7]
[326459756,1714939850905,-151.0,0.00029,7]
[326459757,1714939850914,-171.372256,0.00029,7]
[326459758,1714939850923,-171.372256,0.00029,7]
[326459759,1714939850932,-151.0,0.00029,7]
[326459760,1714939850942,-151.0,0.00029,7]
[326459761,1714939850951,-151.0,0.00029,7]
[326459762,1714939850960,-151.0,0.00029,7]
[326459763,1714939850970,-151.0,0.00029,7]
[326459764,1714939850979,-151.0,0.00029,7]
[326459765,1714939850989,-285.04402,0.00029,7]
[326459766,1714939850998,-285.04402,0.00029,7]
[326459767,1714939851009,-151.0,0.00029,7]
[326459768,1714939851018,-450.0,0.00029,7]
[326459769,1714939851027,-450.0,0.00029,7]
[326459770,1714939851036,-151.0,0.00029,7]
[326459771,1714939851046,-151.0,0.00029,7]
[326459772,1714939851055,-271.67282,0.00029,7]
[326459773,1714939851065,-151.0,0.00029,7]
[326459774,1714939851074,-151.0,0.00029,7]
[326459775,1714939851083,-276.802324,0.00029,7]
[326459776,1714939851093,-151.0,0.00029,7]
[326459777,1714939851102,-151.0,0.00029,7]
[326459778,1714939851111,-151.0,0.00029,7]
[326459779,1714939851120,-264.29468,0.00029,7]
[326459780,1714939851130,-151.0,0.00029,7]
[326459781,1714939851139,-264.29468,0.00029,7]
[326459782,1714939851148,-209.071652,0.00029,7]
[326459783,1714939851158,-209.071652,0.00029,7]
[326459784,1714939851168,-151.0,0.00029,7]
[326459785,1714939851178,-151.0,0.00029,7]
[326459786,1714939851187,-151.0,0.00029,7]
[326459787,1714939851198,-151.0,0.00029,7]
[326459788,1714939851212,-151.0,0.00029,7]
[326459789,1714939851221,-844.718222,0.00029,7]
[326459790,1714939851231,-844.718222,0.00029,7]
[326459791,1714939851242,-1287.677464,0.00029,7]
[326459792,1714939851253,-1287.677464,0.00029,7]
[326459793,1714939851262,-202.028961,0.00029,7]
[326459794,1714939851274,-202.028961,0.00029,7]
[326459795,1714939851285,-177.806004,0.00029,7]
[326459796,1714939851294,-151.0,0.00029,7]
[326459797,1714939851304,-177.806004,0.00029,7]
[326459798,1714939851313,-173.87888,0.00029,7]
[326459799,1714939851324,-173.87888,0.00029,7]
[326459800,1714939851335,-153.67374815,0.00029,2]
[326459801,1714939851346,-153.67374815,0.00029,2]
[326459802,1714939851356,-153.67374815,0.00029,2]
[326459803,1714939851367,-153.67374815,0.00029,2]
[326459804,1714939851376,-153.67374815,0.00029,2]
[326459805,1714939851387,-153.67374815,0.00029,2]
[326459806,1714939851397,-153.67374815,0.00029,2]
[326459807,1714939851406,-153.67374815,0.00029,2]
[326459808,1714939851415,-153.67374815,0.00029,2]
[326459809,1714939851425,-153.67374815,0.00029,2]
[326459810,1714939851435,-153.67374815,0.00029,2]
[326459811,1714939851446,-153.67374815,0.00029,2]
[326459812,1714939851456,-153.67374815,0.00029,2]
[326459813,1714939851466,-153.67374815,0.00029,2]
[326459814,1714939851475,-153.67374815,0.00029,2]
[326459815,1714939851487,-153.67374815,0.00029,2]
[326459816,1714939851497,-153.67374815,0.00029,2]
[326459817,1714939851507,-153.67374815,0.00029,2]
[326459818,1714939851516,-153.67374815,0.00029,2]
[326459819,1714939851526,-153.67374815,0.00029,2]
[326459820,1714939851538,-153.67374815,0.00029,2]
[326459821,1714939851547,-153.67374815,0.00029,2]
[326459822,1714939851557,-153.67374815,0.00029,2]
[326459823,1714939851567,-153.67374815,0.00029,2]
[326459824,1714939851577,-153.67374815,0.00029,2]
[326459825,1714939851587,-153.67374815,0.00029,2]
[326459826,1714939851596,-153.67374815,0.00029,2]
[326459827,1714939851606,-153.67374815,0.00029,2]
[326459828,1714939851616,-153.67374815,0.00029,2]
[326459829,1714939851625,-153.67374815,0.00029,2]
[326459830,1714939851634,-153.67374815,0.00029,2]
[326459831,1714939851644,-153.67374815,0.00029,2]
[326459832,1714939851653,-153.67374815,0.00029,2]
[326459833,1714939851662,-153.67374815,0.00029,2]
[326459834,1714939851672,-153.67374815,0.00029,2]
[326459835,1714939851681,-153.67374815,0.00029,2]
[326459836,1714939851691,-153.67374815,0.00029,2]
[326459837,1714939851701,-153.67374815,0.00029,2]
[326459838,1714939851711,-153.67374815,0.00029,2]
[326459839,1714939851720,-153.67374815,0.00029,2]
[326459840,1714939851731,-153.67374815,0.00029,2]
[326459841,1714939851742,-153.67374815,0.00029,2]
[326459842,1714939851753,-153.67374815,0.00029,2]
[326459843,1714939851762,-153.67374815,0.00029,2]
[326459844,1714939851771,-153.67374815,0.00029,2]
[326459845,1714939851781,-153.67374815,0.00029,2]
[326459846,1714939851790,-153.67374815,0.00029,2]
[326459847,1714939851800,-153.67374815,0.00029,2]
[326459848,1714939851809,-153.67374815,0.00029,2]
[326459849,1714939851818,-153.67374815,0.00029,2]
[326459850,1714939851827,-153.67374815,0.00029,2]
[326459851,1714939851837,-153.67374815,0.00029,2]
[326459852,1714939851846,-153.67374815,0.00029,2]
[326459853,1714939851855,-212.0,0.0002942,2]
[326459854,1714939851865,-237.77515042,0.00029421,2]
[326459855,1714939851874,-237.77515042,0.00029656,2]
[326459856,1714939851883,-163.09,0.00029673,2]
[326459857,1714939851893,-163.09,0.00029673,2]
[326459858,1714939851904,-163.09,0.00029673,2]
[326459859,1714939851913,-300.88,0.00029673,2]
[326459860,1714939851922,-150.0,0.00029679,2]
[326459861,1714939851932,-154.317,0.00029679,2]
[326459862,1714939851942,-2300.0,0.00029679,2]
[326459863,1714939851951,-971.0,0.00029679,2]
[326459864,1714939851960,-1396.0,0.00029679,2]
[326459865,1714939851969,-462.0,0.00029679,2]
[326459866,1714939851978,-1227.0,0.00029679,2]
[326459867,1714939851988,-542.0,0.00029679,2]
[326459868,1714939851997,-1259.0,0.00029679,2]
[326459869,1714939852007,-808.0,0.00029679,2]
[326459870,1714939852016,-209.0,0.00029679,2]
[326459871,1714939852026,-611.0,0.00029679,2]
[326459872,1714939852035,-1787.0,0.00029679,2]
[326459873,1714939852044,-438.0,0.00029679,2]
[326459874,1714939852053,-150.0,0.00029679,2]
[326459875,1714939852063,-1477.0,0.00029679,2]
[326459876,1714939852072,-421.0,0.00029679,2]
[326459877,1714939852081,-2450.0,0.00029679,2]
[326459878,1714939852091,-150.0,0.00029679,2]
[326459879,1714939852100,-1644.0,0.00029679,2]
[326459880,1714939852109,-1139.0,0.00029679,2]
[326459881,1714939852119,-444.0,0.00029679,2]
[326459882,1714939852128,-215.0,0.00029679,2]
[326459883,1714939852138,-3152.0,0.00029679,2]
[326459884,1714939852148,-963.89,0.000297,2]
[326459885,1714939852157,-237.77515042,0.00029734,2]
[326459886,1714939852166,-156.0,0.0002985,27]
[326459887,1714939852175,-1122.3,0.000299,2]
[326459888,1714939852185,-11722.25932669,0.0003,3]
[326459889,1714939852195,-5533.41,0.0003,2]
[326459890,1714939852208,-504.0,0.0003,4]
[326459891,1714939852218,-89018.08207677,0.0003,7]
[326459892,1714939852227,-2221.6247304,0.0003,3]
[326459893,1714939852236,-750.0,0.0003,3]
[326459894,1714939852247,-155.0,0.0003,2]
[326459895,1714939852256,-577.81,0.0003,2]
[326459896,1714939852265,-237.77515042,0.00030068,7]
[326459897,1714939852277,-1136.0,0.0003008,15]
[326459898,1714939852286,-1178.0,0.0003008,15]
[326459899,1714939852295,-237.77515042,0.0003008,7]
[326459900,1714939852305,-209.0,0.0003008,15]
[326459901,1714939852314,-1136.0,0.0003009,15]
[326459902,1714939852323,-1178.0,0.0003009,15]
[326459903,1714939852332,-209.0,0.0003009,15]
[326459904,1714939852342,-151.35100351,0.00030118,7]